bitfinex-derivatives/quotes_BTCF0:USTF0_20241025
["timestamp","ask_amount","ask_price","bid_price","bid_amount"]
[1729865883513,0.072977,68555.0,68554.0,0.072974]
[1729865884611,0.14024636,68560.0,68556.0,0.072972]
[1729865884612,0.072973,68557.0,68556.0,0.072972]
[1729865884815,0.14024636,68560.0,68551.0,0.16168484]
[1729865885121,0.072973,68557.0,68556.0,0.072973]
[1729865885520,0.3608,68557.0,68551.0,0.16168484]
[1729865885912,0.072972,68557.0,68556.0,0.07297]
[1729865886113,0.174,68564.0,68562.0,0.072965]
[1729865886114,0.072965,68563.0,68562.0,0.072965]
[1729865886520,0.072971,68559.0,68558.0,0.07297]
[1729865888316,0.072968,68561.0,68560.0,0.072966]
[1729865888617,0.072972,68557.0,68556.0,0.3608]
[1729865888820,0.072978,68551.0,68550.0,0.435178]
[1729865889023,0.21322436,68551.0,68550.0,0.433778]
[1729865889218,0.21322436,68551.0,68550.0,0.3608]
[1729865889417,0.072984,68545.0,68537.0,0.3608]
[1729865889716,0.57403036,68545.0,68539.0,0.072991]
[1729865889909,0.57403036,68545.0,68537.0,0.3608]
[1729865890110,0.57403036,68545.0,68540.0,0.07299]
[1729865890316,0.21323036,68545.0,68537.0,0.3608]
[1729865891318,0.25988508,68545.0,68533.0,0.072997]
[1729865891521,0.25988508,68545.0,68524.0,0.3608]
[1729865891522,0.072993,68538.0,68524.0,0.3608]
[1729865891717,0.073006,68525.0,68524.0,0.3608]
[1729865892124,0.162206,68525.0,68524.0,0.433807]
[1729865892828,0.0892,68525.0,68524.0,0.433807]
[1729865893025,0.0021892,68544.0,68524.0,0.93884636]
[1729865893226,0.07299,68540.0,68539.0,0.21323636]
[1729865893434,0.07299,68540.0,68539.0,0.14024636]
[1729865893622,0.072994,68536.0,68535.0,0.072994]
[1729865895824,0.072999,68532.0,68531.0,0.072999]
[1729865896122,0.072995,68536.0,68535.0,0.072994]
[1729865897526,0.072997,68533.0,68532.0,0.072998]
[1729865898032,0.83896746,68543.0,68530.0,0.21036746]
[1729865898033,0.072993,68538.0,68537.0,0.072992]
[1729865898636,0.072998,68534.0,68533.0,0.072997]
[1729865899529,0.072998,68534.0,68525.0,0.073006]
[1729865899530,0.073006,68526.0,68525.0,0.073006]
[1729865899834,0.07301,68522.0,68521.0,0.073009]
[1729865900130,0.073011,68520.0,68517.0,0.3608]
[1729865900330,0.073011,68520.0,68510.0,0.02066663]
[1729865900535,0.073011,68520.0,68501.0,0.98554746]
[1729865900741,0.073022,68510.0,68507.0,0.073024]
[1729865900930,0.28338946,68510.0,68505.0,0.073026]
[1729865901130,0.28338946,68510.0,68501.0,0.77518]
[1729865901131,0.28338946,68510.0,68506.0,0.073026]
[1729865901333,0.073022,68510.0,68501.0,0.77518]
[1729865901839,0.57116746,68514.0,68512.0,0.073018]
[1729865901840,0.073019,68513.0,68512.0,0.073018]
[1729865902040,0.073022,68510.0,68509.0,0.3608]
[1729865902233,0.28338946,68510.0,68509.0,0.0014]
[1729865902432,0.28338946,68510.0,68504.0,0.073028]
[1729865902433,0.073027,68505.0,68504.0,0.073028]
[1729865902633,0.07303,68502.0,68501.0,0.77658]
[1729865903137,0.07303,68502.0,68501.0,0.77662]
[1729865903441,0.07303,68502.0,68501.0,0.77518]
[1729865904634,0.07303,68502.0,68501.0,0.848211]
[1729865904836,0.0918,68504.0,68503.0,0.073029]
[1729865905038,0.164828,68504.0,68503.0,0.073029]
[1729865908139,0.0918,68504.0,68501.0,0.77658]
[1729865908333,0.0918,68504.0,68501.0,0.848211]
[1729865908334,0.07303,68502.0,68501.0,0.848211]
[1729865909141,0.07303,68502.0,68501.0,0.348211]
[1729865909732,0.0918,68504.0,68503.0,0.073029]
[1729865909936,0.164828,68504.0,68503.0,0.073029]
[1729865911042,0.07303,68502.0,68501.0,0.27518]
[1729865911232,0.07303,68502.0,68501.0,0.348211]
[1729865911437,0.07303,68502.0,68501.0,0.27518]
[1729865912135,0.07303,68502.0,68501.0,0.348211]
[1729865912433,0.07519887,68523.0,68501.0,0.348211]
[1729865912434,0.073023,68509.0,68507.0,0.073024]
[1729865912629,0.57116746,68520.0,68501.0,0.66384746]
[1729865912630,0.073027,68506.0,68501.0,0.66384746]
[1729865913131,0.3608,68514.0,68501.0,0.66384746]
[1729865913335,0.3608,68514.0,68508.0,0.073023]
[1729865913640,0.073022,68510.0,68509.0,0.073023]
[1729865914139,0.07302,68512.0,68511.0,0.073019]
[1729865914638,0.3608,68514.0,68508.0,0.3608]
[1729865914842,0.433817,68514.0,68513.0,0.073018]
[1729865915038,0.073014,68518.0,68517.0,0.073013]
[1729865916144,0.00218987,68523.0,68516.0,0.21036746]
[1729865916353,0.00218987,68523.0,68522.0,0.57406743]
[1729865917344,0.073004,68527.0,68522.0,0.50105843]
[1729865917550,0.073004,68527.0,68526.0,0.073005]
[1729865917939,0.14025843,68532.0,68522.0,0.50105843]
[1729865918137,0.072996,68534.0,68529.0,0.3608]
[1729865918339,0.14025843,68537.0,68531.0,0.14025843]
[1729865918547,0.072993,68538.0,68537.0,0.07299]
[1729865918745,0.072989,68541.0,68540.0,0.07299]
[1729865920542,0.50181843,68542.0,68541.0,0.072989]
[1729865920543,0.00076,68542.0,68541.0,0.072989]
[1729865920735,0.072988,68542.0,68541.0,0.072989]
[1729865920939,0.21324643,68542.0,68541.0,0.072989]
[1729865921142,0.14025843,68542.0,68541.0,0.072989]
[1729865921540,0.0021892,68544.0,68543.0,0.072987]
[1729865922140,0.0751742,68544.0,68543.0,0.072987]
[1729865923046,0.0751742,68544.0,68537.0,0.02147347]
[1729865923047,0.0021892,68544.0,68537.0,0.02147347]
[1729865923255,0.0021892,68544.0,68534.0,0.1712]
[1729865923256,0.21325043,68538.0,68534.0,0.1712]
[1729865923449,0.21325043,68538.0,68537.0,0.072993]
[1729865923949,0.072992,68538.0,68537.0,0.072993]
[1729865925044,0.14025843,68541.0,68534.0,0.55473587]
[1729865925241,0.14025843,68541.0,68534.0,0.55333587]
[1729865925444,0.072994,68536.0,68535.0,0.072995]
[1729865925644,0.14025843,68538.0,68534.0,0.47143587]
[1729865925954,0.21325143,68538.0,68537.0,0.072993]
[1729865926247,0.14025843,68538.0,68537.0,0.072993]
[1729865926448,0.0021892,68544.0,68534.0,0.47003587]
[1729865926649,0.21324743,68541.0,68540.0,0.072989]
[1729865927150,0.14025843,68541.0,68540.0,0.072989]
[1729865927355,0.0751752,68544.0,68543.0,0.072987]
[1729865927749,0.0021892,68544.0,68539.0,0.07299]
[1729865927948,0.14025843,68541.0,68534.0,0.6116943]
[1729865928150,0.0021892,68544.0,68540.0,0.3608]
[1729865928351,0.07297,68559.0,68558.0,0.07297]
[1729865928548,0.21322843,68559.0,68558.0,0.07297]
[1729865928952,0.072975,68554.0,68553.0,0.072975]
[1729865929252,0.072981,68549.0,68548.0,0.07298]
[1729865929445,0.072984,68545.0,68544.0,0.07517317]
[1729865929645,0.14025843,68545.0,68544.0,0.07517317]
[1729865930253,0.21324243,68545.0,68544.0,0.09578543]
[1729865931455,0.21324243,68545.0,68544.0,0.00218817]
[1729865931948,0.79118086,68545.0,68531.0,0.0817]
[1729865932254,0.0833,68548.0,68525.0,0.4427]
[1729865932255,0.073003,68528.0,68525.0,0.4427]
[1729865932758,0.073,68531.0,68530.0,0.073]
[1729865933058,0.073,68531.0,68529.0,0.073001]
[1729865933556,0.073,68531.0,68530.0,0.073]
[1729865933959,0.073,68531.0,68530.0,0.21325843]
[1729865934958,0.073,68531.0,68530.0,0.14025843]
[1729865935253,0.073004,68527.0,68526.0,0.21326343]
[1729865935453,0.073004,68527.0,68506.0,0.3608]
[1729865935454,0.073014,68517.0,68506.0,0.3608]
[1729865935647,0.21327243,68517.0,68512.0,0.02138816]
[1729865936052,0.21327243,68517.0,68510.0,0.073022]
[1729865936652,0.21327243,68517.0,68509.0,0.14025843]
[1729865936864,0.073014,68517.0,68512.0,0.50105843]
[1729865937064,0.073014,68517.0,68512.0,0.50245843]
[1729865937365,0.073014,68517.0,68516.0,0.14244763]
[1729865937865,0.073014,68517.0,68516.0,0.0021892]
[1729865938750,0.073014,68517.0,68508.0,0.02065592]
[1729865938946,0.14025843,68509.0,68506.0,0.3608]
[1729865939151,0.14025843,68509.0,68503.0,0.02150589]
[1729865939152,0.0819,68508.0,68503.0,0.02150589]
[1729865939353,0.0819,68508.0,68502.0,0.073029]
[1729865939568,0.0819,68508.0,68500.0,0.3608]
[1729865940054,0.0819,68508.0,68498.0,0.14025843]
[1729865940055,0.21328843,68502.0,68498.0,0.073034]
[1729865940261,0.07303,68502.0,68501.0,0.2958275]
[1729865941160,0.07303,68502.0,68501.0,0.27518]
[1729865941668,0.433828,68506.0,68505.0,0.073027]
[1729865941968,0.3608,68506.0,68505.0,0.073027]
[1729865942258,0.433826,68506.0,68505.0,0.073027]
[1729865942458,0.4504,68519.0,68514.0,0.073016]
[1729865942958,0.3608,68519.0,68515.0,0.21048462]
[1729865943165,0.0862,68530.0,68519.0,0.073012]
[1729865943353,0.0862,68530.0,68519.0,0.28349662]
[1729865943956,0.073004,68527.0,68519.0,0.28349662]
[1729865944148,0.073007,68524.0,68519.0,0.28349662]
[1729865944351,0.0862,68530.0,68519.0,0.28349662]
[1729865944556,0.073005,68526.0,68519.0,0.28349662]
[1729865944765,0.073006,68525.0,68519.0,0.28349662]
[1729865945166,0.073006,68525.0,68519.0,0.21048462]
[1729865945355,0.073006,68525.0,68524.0,0.073007]
[1729865945556,0.0862,68530.0,68528.0,0.073002]
[1729865945557,0.073003,68529.0,68528.0,0.073002]
[1729865945954,0.073006,68525.0,68524.0,0.28349162]
[1729865946565,0.073006,68525.0,68524.0,0.073007]
[1729865946862,0.0862,68530.0,68520.0,0.073011]
[1729865946863,0.073011,68521.0,68520.0,0.073011]
[1729865947562,0.073006,68525.0,68524.0,0.073006]
[1729865947955,0.36156,68538.0,68522.0,0.21048462]
[1729865948163,0.36156,68538.0,68518.0,0.3608]
[1729865948164,0.3608,68538.0,68528.0,0.21048462]
[1729865948364,0.073001,68531.0,68530.0,0.072999]
[1729865948570,0.073006,68527.0,68526.0,0.073004]
[1729865949056,0.3608,68532.0,68524.0,0.3608]
[1729865949364,0.3608,68532.0,68516.0,0.00218919]
[1729865949365,0.3608,68525.0,68516.0,0.00218919]
[1729865949663,0.073014,68517.0,68516.0,0.00218919]
[1729865951463,0.07302,68512.0,68511.0,0.02058253]
[1729865951666,0.64430462,68512.0,68501.0,0.63598]
[1729865951970,0.07303,68503.0,68502.0,0.07303]
[1729865952766,0.64430462,68512.0,68501.0,0.29794089]
[1729865952767,0.07303,68502.0,68501.0,0.29794089]
[1729865952965,0.07303,68502.0,68501.0,0.29654089]
[1729865952966,0.28351462,68502.0,68501.0,0.29654089]
[1729865953560,0.28351462,68502.0,68501.0,0.27518]
[1729865954473,0.07303,68502.0,68501.0,0.27518]
[1729865955272,0.31874,68505.0,68501.0,0.63598]
[1729865955273,0.0892,68505.0,68501.0,0.63598]
[1729865955471,0.00088,68506.0,68505.0,0.073027]
[1729865955669,0.073024,68509.0,68508.0,0.073023]
[1729865956367,0.3608,68512.0,68504.0,0.21048462]
[1729865956571,0.073027,68507.0,68506.0,0.073025]
[1729865957377,0.073021,68511.0,68510.0,0.073021]
[1729865958062,0.00218986,68521.0,68510.0,0.21048462]
[1729865958259,0.00218986,68521.0,68517.0,0.073012]
[1729865958260,0.073014,68518.0,68517.0,0.073012]
[1729865958474,0.00218986,68521.0,68516.0,0.21048462]
[1729865958778,0.07519986,68521.0,68520.0,0.073011]
[1729865960568,0.073013,68518.0,68517.0,0.02088207]
[1729865960775,0.073017,68515.0,68514.0,0.073017]
[1729865962070,0.073013,68519.0,68518.0,0.073013]
[1729865962378,0.073011,68520.0,68519.0,0.073011]
[1729865964170,0.00218986,68521.0,68512.0,0.38174097]
[1729865964370,0.073015,68517.0,68512.0,0.3608]
[1729865964568,0.073018,68514.0,68513.0,0.073018]
[1729865968274,0.073018,68513.0,68512.0,0.02151996]
[1729865968466,0.00218986,68521.0,68520.0,0.073011]
[1729865968667,0.00218986,68521.0,68520.0,0.64429562]
[1729865969376,0.072996,68535.0,68527.0,0.073004]
[1729865969570,0.0919,68536.0,68527.0,0.073004]
[1729865969965,0.073003,68528.0,68527.0,0.073004]
[1729865970794,0.072999,68532.0,68531.0,0.072998]
[1729865970968,0.073003,68528.0,68527.0,0.073003]
[1729865971575,0.073003,68528.0,68527.0,0.09454875]
[1729865972682,0.0919,68536.0,68527.0,0.02154575]
[1729865972884,0.073003,68528.0,68527.0,0.073002]
[1729865973782,0.073007,68525.0,68524.0,0.073006]
[1729865973980,0.073002,68529.0,68528.0,0.072999]
[1729865974186,0.072997,68533.0,68532.0,0.072996]
[1729865974377,0.073004,68528.0,68527.0,0.073002]
[1729865974984,0.073004,68528.0,68527.0,0.433802]
[1729865975282,0.073,68532.0,68531.0,0.072998]
[1729865975487,0.00218921,68542.0,68541.0,0.072989]
[1729865975673,0.00218921,68542.0,68541.0,0.64418222]
[1729865976977,0.07517721,68542.0,68541.0,0.433789]
[1729865977681,0.07517721,68542.0,68541.0,0.3608]
[1729865977986,0.00218921,68542.0,68540.0,0.072989]
[1729865978176,0.00218921,68542.0,68541.0,0.072989]
[1729865978384,0.21258243,68542.0,68535.0,0.3608]
[1729865978581,0.073003,68528.0,68527.0,0.433804]
[1729865978885,0.21039322,68528.0,68521.0,0.3608]
[1729865979080,0.073009,68523.0,68522.0,0.073008]
[1729865979386,0.3608,68529.0,68521.0,0.38221952]
[1729865979590,0.1791,68536.0,68527.0,0.21039322]
[1729865979786,0.1791,68536.0,68531.0,0.21039322]
[1729865979787,0.0883,68536.0,68531.0,0.21039322]
[1729865979986,0.161296,68536.0,68535.0,0.072995]
[1729865980389,0.072998,68533.0,68532.0,0.072997]
[1729865981284,0.00084,68541.0,68531.0,0.21039322]
[1729865981488,0.00218921,68542.0,68541.0,0.072989]
[1729865981691,0.07517721,68542.0,68541.0,0.072989]
[1729865982194,0.07299,68540.0,68539.0,0.21039322]
[1729865982490,0.00218921,68542.0,68539.0,0.57119322]
[1729865982794,0.00218921,68542.0,68541.0,0.072989]
[1729865983388,0.00218921,68542.0,68541.0,0.510669]
[1729865984691,0.0876,68562.0,68555.0,0.072973]
[1729865984692,0.072971,68558.0,68555.0,0.072973]
[1729865984893,0.072971,68558.0,68556.0,0.072972]
[1729865985092,0.0876,68562.0,68556.0,0.072972]
[1729865985285,0.072972,68557.0,68556.0,0.072972]
[1729865988786,0.072969,68560.0,68553.0,0.072975]
[1729865988985,0.072969,68560.0,68548.0,0.3608]
[1729865988986,0.072972,68557.0,68555.0,0.072973]
[1729865989188,0.04691377,68556.0,68555.0,0.02185807]
[1729865989494,0.04691377,68556.0,68548.0,0.38224199]
[1729865989691,0.04691377,68555.0,68548.0,0.38224199]
[1729865989890,0.29799322,68562.0,68553.0,0.072976]
[1729865989891,0.04691377,68554.0,68553.0,0.072976]
[1729865990094,0.04691377,68554.0,68550.0,0.21039322]
[1729865990095,0.04708123,68558.0,68550.0,0.21039322]
[1729865990282,0.12005323,68557.0,68556.0,0.433772]
[1729865990484,0.12005323,68557.0,68556.0,0.072972]
[1729865990485,0.072972,68557.0,68556.0,0.072972]
[1729865990691,0.11959836,68557.0,68556.0,0.072972]
[1729865990887,0.32999158,68557.0,68556.0,0.072972]
[1729865991091,0.072976,68553.0,68552.0,0.072977]
[1729865991292,0.04662636,68553.0,68552.0,0.072977]
[1729865991792,0.0876,68562.0,68548.0,0.38224199]
[1729865991793,0.0876,68562.0,68551.0,0.21039322]
[1729865991988,0.160567,68562.0,68561.0,0.072967]
[1729865992187,0.20719559,68562.0,68561.0,0.072967]
[1729865992389,0.0923,68568.0,68561.0,0.433767]
[1729865992589,0.0021885,68572.0,68561.0,0.433767]
[1729865992590,0.164659,68569.0,68568.0,0.07296]
[1729865992796,0.0867,68571.0,68570.0,0.072958]
[1729865992999,0.0867,68571.0,68570.0,0.28335122]
[1729865993189,0.0751445,68572.0,68570.0,0.28335122]
[1729865993190,0.0021885,68572.0,68571.0,0.072957]
[1729865994800,0.02062183,68582.0,68580.0,0.072947]
[1729865995007,0.00076,68585.0,68584.0,0.072943]
[1729865995193,0.00076,68585.0,68581.0,0.21039322]
[1729865995194,0.072937,68590.0,68589.0,0.072936]
[1729865995391,0.12048276,68590.0,68589.0,0.072936]
[1729865996100,0.072937,68590.0,68589.0,0.072936]
[1729865996298,0.12067992,68590.0,68589.0,0.072936]
[1729865997189,0.21039322,68590.0,68583.0,0.3608]
[1729865997391,0.21039322,68590.0,68580.0,0.3608]
[1729865997392,0.072943,68584.0,68580.0,0.3608]
[1729865997606,0.072944,68583.0,68581.0,0.072946]
[1729865998102,0.072943,68586.0,68585.0,0.072941]
[1729865998299,0.0872,68598.0,68583.0,0.21039322]
[1729865998496,0.072935,68592.0,68590.0,0.072936]
[1729865999301,0.072935,68591.0,68590.0,0.072936]
[1729866000002,0.072935,68591.0,68590.0,0.09401901]
[1729866000202,0.0872,68598.0,68591.0,0.072935]
[1729866000401,6.59076,68599.0,68598.0,0.072928]
[1729866000699,6.59,68599.0,68598.0,0.65255457]
[1729866000902,6.21507398,68599.0,68598.0,2.17940724]
[1729866001094,6.21507398,68599.0,68598.0,1.71600724]
[1729866001295,6.21507398,68599.0,68598.0,1.57940724]
[1729866001495,6.21507398,68599.0,68598.0,1.49877457]
[1729866002294,6.1226625,68599.0,68598.0,1.58014422]
[1729866002493,5.94965512,68599.0,68598.0,2.31674422]
[1729866002701,5.65685749,68599.0,68598.0,2.33774947]
[1729866002906,5.63789047,68599.0,68598.0,2.33774947]
[1729866003100,5.61746444,68599.0,68598.0,1.90042947]
[1729866003407,5.61746444,68599.0,68598.0,2.20114947]
[1729866003600,5.61746444,68599.0,68598.0,1.73774947]
[1729866003808,5.61746444,68599.0,68598.0,1.74486947]
[1729866004002,5.61746444,68599.0,68598.0,0.76785982]
[1729866004503,5.61746444,68599.0,68598.0,0.74685457]
[1729866004702,5.69039144,68599.0,68598.0,0.3608]
[1729866005211,5.61746444,68599.0,68588.0,0.3608]
[1729866005506,0.072944,68583.0,68582.0,0.3608]
[1729866005894,0.28333722,68583.0,68582.0,0.3608]
[1729866006094,0.28333722,68583.0,68574.0,0.433753]
[1729866006095,0.07295,68578.0,68574.0,0.433753]
[1729866006501,0.07295,68578.0,68575.0,0.2190041]
[1729866007214,0.0021877,68597.0,68576.0,0.43748]
[1729866007399,0.07293,68597.0,68596.0,0.3608]
[1729866007607,5.61830444,68599.0,68596.0,0.3608]
[1729866007910,5.69039144,68599.0,68596.0,0.3608]
[1729866008111,5.61746444,68599.0,68596.0,0.3608]
[1729866008319,5.61746444,68599.0,68598.0,0.21039322]
[1729866008500,5.61746444,68599.0,68598.0,0.64412122]
[1729866008906,5.61746444,68599.0,68598.0,0.433728]
[1729866009813,5.61746444,68599.0,68598.0,0.3608]
[1729866010009,0.072938,68590.0,68587.0,0.07294]
[1729866010207,0.072938,68590.0,68585.0,0.3608]
[1729866010208,0.072941,68586.0,68585.0,0.3608]
[1729866010511,0.072944,68583.0,68582.0,0.00218698]
[1729866010816,0.3608,68585.0,68572.0,0.3608]
[1729866011111,0.21039322,68579.0,68572.0,0.3608]
[1729866011411,0.072955,68573.0,68572.0,0.3608]
[1729866011613,0.28334822,68573.0,68572.0,0.3608]
[1729866011809,0.072961,68567.0,68566.0,0.3608]
[1729866012218,0.448,68578.0,68559.0,0.3608]
[1729866012219,0.21039322,68568.0,68559.0,0.3608]
[1729866012405,0.21039322,68568.0,68551.0,0.3608]
[1729866012406,0.072974,68555.0,68551.0,0.3608]
[1729866012705,0.072974,68555.0,68543.0,0.3608]
[1729866012706,0.072985,68544.0,68543.0,0.3608]
[1729866012908,0.28337822,68544.0,68543.0,0.3608]
[1729866013309,0.072984,68546.0,68543.0,0.3608]
[1729866013507,0.072979,68551.0,68545.0,0.21039322]
[1729866013708,0.072979,68551.0,68548.0,0.072981]
[1729866013916,0.21039322,68554.0,68543.0,0.3608]
[1729866014118,0.3608,68557.0,68540.0,0.3608]
[1729866014119,0.072985,68544.0,68540.0,0.3608]
[1729866014313,0.21039322,68545.0,68540.0,0.3608]
[1729866014505,0.072989,68541.0,68540.0,0.3608]
[1729866015014,0.21039322,68554.0,68540.0,0.3608]
[1729866015312,0.23836,68572.0,68570.0,1.3198]
[1729866015526,0.28335022,68571.0,68570.0,1.3198]
[1729866015704,0.81227022,68571.0,68570.0,1.177]
[1729866016107,1.41227022,68571.0,68570.0,1.177]
[1729866016617,0.072967,68562.0,68544.0,0.072985]
[1729866016916,0.072967,68562.0,68543.0,0.3608]
[1729866016917,0.21039322,68545.0,68536.0,0.3608]
[1729866017112,0.072975,68554.0,68536.0,0.3608]
[1729866017113,0.072993,68537.0,68536.0,0.433794]
[1729866017519,0.072993,68537.0,68528.0,0.00218884]
[1729866017822,0.073001,68529.0,68528.0,0.00218884]
[1729866018208,0.28339422,68529.0,68528.0,0.00218884]
[1729866019517,0.21039322,68540.0,68524.0,0.57119322]
[1729866019715,0.072996,68534.0,68530.0,0.073]
[1729866019909,0.28338822,68535.0,68530.0,0.073]
[1729866020719,0.072998,68532.0,68530.0,0.073]
[1729866020913,0.072998,68532.0,68531.0,0.072999]
[1729866021426,0.072988,68542.0,68531.0,0.3608]
[1729866021615,0.072989,68541.0,68537.0,0.3608]
[1729866021921,0.072989,68541.0,68540.0,0.07299]
[1729866022118,0.21258238,68551.0,68537.0,0.3608]
[1729866022321,0.21258238,68551.0,68543.0,0.072986]
[1729866022620,0.21039322,68546.0,68534.0,0.3608]
[1729866022824,0.21039322,68538.0,68537.0,0.072993]
[1729866023009,0.3608,68547.0,68534.0,0.3608]
[1729866023010,0.21039322,68547.0,68534.0,0.3608]
[1729866023209,0.072983,68547.0,68544.0,0.072985]
[1729866023414,0.072983,68547.0,68545.0,0.072984]
[1729866023614,0.00218916,68551.0,68546.0,0.21039322]
[1729866023917,0.00218916,68551.0,68550.0,0.433779]
[1729866023918,0.07516716,68551.0,68550.0,0.433779]
[1729866024121,0.00218916,68551.0,68550.0,0.433779]
[1729866025217,0.00218916,68551.0,68550.0,0.64417222]
[1729866025723,0.072965,68563.0,68562.0,0.072966]
[1729866025920,0.00088,68568.0,68561.0,0.3608]
[1729866026121,0.072964,68565.0,68564.0,0.072963]
[1729866026923,0.094,68570.0,68562.0,0.57119322]
[1729866027219,0.00218842,68573.0,68572.0,0.072956]
[1729866027617,0.072958,68570.0,68569.0,0.3608]
[1729866027925,0.00218842,68573.0,68569.0,0.3608]
[1729866028113,0.07514442,68573.0,68572.0,0.072956]
[1729866028822,0.072956,68572.0,68569.0,0.3608]
[1729866029018,0.072956,68572.0,68571.0,0.3608]
[1729866029219,0.00218842,68573.0,68572.0,0.072956]
[1729866031422,0.072956,68572.0,68569.0,0.072958]
[1729866031625,0.072956,68572.0,68570.0,0.072957]
[1729866031817,0.072956,68572.0,68571.0,0.3608]
[1729866032419,0.072956,68572.0,68571.0,0.433757]
[1729866032922,0.072956,68572.0,68571.0,0.3608]
[1729866033126,0.28334922,68572.0,68571.0,0.3608]
[1729866033325,0.21039322,68572.0,68562.0,0.3608]
[1729866033521,0.28335622,68566.0,68563.0,0.072965]
[1729866033722,0.072964,68565.0,68563.0,0.072965]
[1729866033924,0.21039322,68566.0,68562.0,0.3608]
[1729866033925,0.072965,68563.0,68562.0,0.3608]
[1729866034119,0.072969,68559.0,68558.0,0.00218789]
[1729866034324,0.28336222,68559.0,68558.0,0.00218789]
[1729866037925,0.21039322,68559.0,68544.0,0.3608]
[1729866038527,0.072971,68558.0,68550.0,0.3608]
[1729866038731,0.072971,68558.0,68551.0,0.072978]
[1729866038931,0.072971,68558.0,68554.0,0.072974]
[1729866039130,0.3608,68562.0,68557.0,0.072971]
[1729866039131,0.072969,68560.0,68557.0,0.072971]
[1729866039426,0.072969,68560.0,68550.0,0.3608]
[1729866039427,0.3608,68562.0,68550.0,0.3608]
[1729866039632,0.072974,68555.0,68550.0,0.3608]
[1729866039831,0.072974,68555.0,68554.0,0.072975]
[1729866040131,0.21039322,68557.0,68550.0,0.3608]
[1729866040337,0.072983,68547.0,68537.0,0.54538]
[1729866040529,0.072972,68557.0,68537.0,0.54538]
[1729866040530,0.30049322,68556.0,68545.0,0.3608]
[1729866040726,0.57119322,68561.0,68551.0,0.3608]
[1729866040922,0.57119322,68561.0,68555.0,0.072974]
[1729866040923,0.072972,68557.0,68555.0,0.072974]
[1729866041122,0.072972,68557.0,68556.0,0.072973]
[1729866041123,0.21039322,68557.0,68556.0,0.072973]
[1729866041429,0.0901,68567.0,68563.0,0.072964]
[1729866041730,0.072964,68564.0,68563.0,0.072964]
[1729866041932,0.072961,68567.0,68562.0,0.3608]
[1729866042232,0.072959,68569.0,68563.0,0.072965]
[1729866042429,0.07296,68568.0,68567.0,0.072959]
[1729866042831,0.072957,68571.0,68562.0,0.3608]
[1729866043028,0.072959,68569.0,68568.0,0.072958]
[1729866045631,0.072959,68569.0,68562.0,0.3608]
[1729866045632,0.072962,68566.0,68565.0,0.072963]
[1729866046134,0.28335522,68566.0,68565.0,0.072963]
[1729866048432,0.21039322,68566.0,68562.0,0.3608]
[1729866048633,0.072965,68563.0,68562.0,0.3608]
[1729866049041,0.072972,68557.0,68556.0,0.098]
[1729866049239,0.072979,68550.0,68549.0,0.3608]
[1729866049426,0.072979,68550.0,68549.0,0.43378]
[1729866049627,0.072979,68550.0,68549.0,0.3608]
[1729866050143,0.072979,68550.0,68549.0,0.43378]
[1729866050938,0.0927,68559.0,68553.0,0.072976]
[1729866050939,0.072975,68554.0,68553.0,0.072976]
[1729866051530,0.072975,68554.0,68549.0,0.3608]
[1729866051531,0.0927,68559.0,68549.0,0.3608]
[1729866051741,0.21039322,68555.0,68549.0,0.433779]
[1729866052047,0.072983,68546.0,68545.0,0.072983]
[1729866052836,0.072981,68549.0,68543.0,0.11785879]
[1729866053040,0.072977,68553.0,68552.0,0.072977]
[1729866053739,0.3608,68567.0,68550.0,0.21039322]
[1729866053740,0.21039322,68564.0,68550.0,0.21039322]
[1729866053938,0.21039322,68564.0,68556.0,0.3608]
[1729866054137,0.072969,68560.0,68559.0,0.072967]
[1729866054437,0.21039322,68564.0,68556.0,0.3608]
[1729866054438,0.072972,68557.0,68556.0,0.3608]
[1729866054639,0.21039322,68559.0,68550.0,0.072978]
[1729866054841,0.072978,68551.0,68550.0,0.072978]
[1729866058349,0.072978,68551.0,68547.0,0.02053497]
[1729866058350,0.072981,68548.0,68547.0,0.072982]
[1729866058643,0.072977,68552.0,68551.0,0.072976]
[1729866058836,0.072967,68561.0,68552.0,0.072976]
[1729866059040,0.072967,68561.0,68560.0,0.433768]
[1729866060347,0.0913,68570.0,68560.0,0.3608]
[1729866060348,0.21039322,68567.0,68560.0,0.3608]
[1729866060542,0.072965,68564.0,68563.0,0.072964]
[1729866062142,0.072967,68561.0,68560.0,0.3608]
[1729866062349,0.28336022,68561.0,68560.0,0.3608]
[1729866062745,0.072963,68565.0,68560.0,0.3608]
[1729866062943,0.36156,68575.0,68562.0,0.21039322]
[1729866063250,0.36156,68575.0,68560.0,0.3608]
[1729866063251,0.072958,68570.0,68569.0,0.30969304]
[1729866063444,0.11981317,68570.0,68569.0,0.30969304]
[1729866063643,0.072959,68569.0,68563.0,0.169565]
[1729866063844,0.072964,68564.0,68563.0,0.169565]
[1729866064442,0.21039322,68566.0,68560.0,0.435168]
[1729866064443,0.072967,68561.0,68560.0,0.435168]
[1729866064744,0.28336022,68561.0,68560.0,0.433768]
[1729866065051,0.072967,68561.0,68560.0,0.433768]
[1729866066148,0.072967,68561.0,68560.0,0.3608]
[1729866066453,0.28336022,68561.0,68560.0,0.3608]
[1729866066745,0.07298,68550.0,68549.0,0.07298]
[1729866066947,0.072981,68548.0,68547.0,0.3608]
[1729866067350,0.072981,68548.0,68547.0,0.09355836]
[1729866067549,0.072981,68548.0,68540.0,0.0948]
[1729866067550,0.072989,68541.0,68540.0,0.0948]
[1729866067755,0.28338222,68541.0,68540.0,0.0948]
[1729866068371,0.21039322,68541.0,68536.0,0.00218858]
[1729866068652,0.072993,68537.0,68536.0,0.00218858]
[1729866069055,0.072993,68537.0,68536.0,0.07518258]
[1729866069368,0.072993,68537.0,68536.0,0.00218858]
[1729866069548,0.28338622,68537.0,68536.0,0.00218858]
[1729866069745,0.0918,68547.0,68535.0,0.57119322]